fUSD/lending_fUSD_20250201
["ID","MTS","AMOUNT","RATE_DAILY","PERIOD"]
[351207040,1738426246804,-157.035899,0.000163,2]
[351207041,1738426246816,-157.035899,0.000163,2]
[351207042,1738426246826,-157.035899,0.000163,2]
[351207043,1738426246835,-151.0,0.000163,2]
[351207044,1738426246844,-151.0,0.000163,2]
[351207045,1738426246854,-151.0,0.000163,2]
[351207046,1738426246863,-332.175108,0.000163,2]
[351207047,1738426246872,-332.175108,0.000163,2]
[351207048,1738426246882,-332.175108,0.000163,2]
[351207049,1738426246892,-332.175108,0.000163,2]
[351207050,1738426246901,-332.175108,0.000163,2]
[351207051,1738426246910,-332.175108,0.000163,2]
[351207052,1738426246921,-198.714051,0.000163,2]
[351207053,1738426246932,-198.714051,0.000163,2]
[351207054,1738426246941,-198.714051,0.000163,2]
[351207055,1738426246954,-198.714051,0.000163,2]
[351207056,1738426246965,-151.0,0.000163,2]
[351207057,1738426246975,-198.714051,0.000163,2]
[351207058,1738426246984,-151.0,0.000163,2]
[351207059,1738426246994,-198.714051,0.000163,2]
[351207060,1738426247003,-288.34706,0.000163,2]
[351207061,1738426247013,-151.0,0.000163,2]
[351207062,1738426247022,-151.0,0.000163,2]
[351207063,1738426247031,-151.0,0.000163,2]
[351207064,1738426247041,-175.215476,0.000163,2]
[351207065,1738426247050,-175.215476,0.000163,2]
[351207066,1738426247059,-175.215476,0.000163,2]
[351207067,1738426247068,-175.215476,0.000163,2]
[351207068,1738426247077,-175.215476,0.000163,2]
[351207069,1738426247087,-175.215476,0.000163,2]
[351207070,1738426247097,-394.709078,0.000163,2]
[351207071,1738426247107,-394.709078,0.000163,2]
[351207072,1738426247116,-151.0,0.000163,2]
[351207073,1738426247125,-394.709078,0.000163,2]
[351207074,1738426247135,-151.0,0.000163,2]
[351207075,1738426247144,-151.0,0.000163,2]
[351207076,1738426247154,-394.709078,0.000163,2]
[351207077,1738426247306,-394.709078,0.000163,2]
[351207078,1738426247316,-477.761517,0.000163,2]
[351207079,1738426247326,-151.0,0.000163,2]
[351207080,1738426247335,-477.761517,0.000163,2]
[351207081,1738426247347,-394.709078,0.000163,2]
[351207082,1738426247357,-151.0,0.000163,2]
[351207083,1738426247366,-477.761517,0.000163,2]
[351207084,1738426247376,-151.0,0.000163,2]
[351207085,1738426247385,-477.761517,0.000163,2]
[351207086,1738426247394,-477.761517,0.000163,2]
[351207087,1738426247404,-477.761517,0.000163,2]
[351207088,1738426247414,-8778.618731,0.000163,2]
[351207089,1738426247423,-8778.618731,0.000163,2]
[351207090,1738426247433,-8778.618731,0.000163,2]
[351207091,1738426247444,-3379.62688152,0.000163,2]
[351207092,1738426247454,-8778.618731,0.000163,2]
[351207093,1738426247463,-8778.618731,0.000163,2]
[351207094,1738426247473,-8778.618731,0.000163,2]
[351207095,1738426247482,-403.584928,0.000163,2]
[351207096,1738426247502,-403.584928,0.000163,2]
[351207097,1738426247512,-403.584928,0.000163,2]
[351207098,1738426247522,-403.584928,0.000163,2]
[351207099,1738426247533,-403.584928,0.000163,2]
[351207100,1738426247543,-151.0,0.000163,2]
[351207101,1738426247552,-403.584928,0.000163,2]
[351207102,1738426247562,-151.0,0.000163,2]
[351207103,1738426247573,-151.0,0.000163,2]
[351207104,1738426247583,-231.653368,0.000163,2]
[351207105,1738426247593,-231.653368,0.000163,2]
[351207106,1738426247603,-231.653368,0.000163,2]
[351207107,1738426247613,-231.653368,0.000163,2]
[351207108,1738426247623,-231.653368,0.000163,2]
[351207109,1738426247632,-231.653368,0.000163,2]
[351207110,1738426247641,-1504.182217,0.000163,2]
[351207111,1738426247651,-1504.182217,0.000163,2]
[351207112,1738426247662,-1504.182217,0.000163,2]
[351207113,1738426247672,-1504.182217,0.000163,2]
[351207114,1738426247682,-1504.182217,0.000163,2]
[351207115,1738426247692,-1504.182217,0.000163,2]
[351207116,1738426247703,-151.0,0.000163,2]
[351207117,1738426247713,-151.0,0.000163,2]
[351207118,1738426247722,-151.0,0.000163,2]
[351207119,1738426247731,-151.0,0.000163,2]
[351207120,1738426247742,-225.279186,0.000163,2]
[351207121,1738426247752,-225.279186,0.000163,2]
[351207122,1738426247761,-151.0,0.000163,2]
[351207123,1738426247771,-225.279186,0.000163,2]
[351207124,1738426247780,-151.0,0.000163,2]
[351207125,1738426247790,-151.0,0.000163,2]
[351207126,1738426247800,-151.0,0.000163,2]
[351207127,1738426247809,-225.279186,0.000163,2]
[351207128,1738426247820,-151.0,0.000163,2]
[351207129,1738426247830,-225.279186,0.000163,2]
[351207130,1738426247840,-151.0,0.000163,2]
[351207131,1738426247850,-225.279186,0.000163,2]
[351207132,1738426247859,-672.583795,0.000163,2]
[351207133,1738426247868,-672.583795,0.000163,2]
[351207134,1738426247878,-672.583795,0.000163,2]
[351207135,1738426247887,-672.583795,0.000163,2]
[351207136,1738426247897,-672.583795,0.000163,2]
[351207137,1738426247907,-672.583795,0.000163,2]
[351207138,1738426247916,-151.0,0.000163,2]
[351207139,1738426247926,-151.0,0.000163,2]
[351207140,1738426247935,-151.0,0.000163,2]
[351207141,1738426247944,-151.0,0.000163,2]
[351207142,1738426247954,-181.217168,0.000163,2]
[351207143,1738426247964,-181.217168,0.000163,2]
[351207144,1738426247974,-181.217168,0.000163,2]
[351207145,1738426247983,-181.217168,0.000163,2]
[351207146,1738426247993,-181.217168,0.000163,2]
[351207147,1738426248004,-151.0,0.000163,2]
[351207148,1738426248014,-181.217168,0.000163,2]
[351207149,1738426248023,-151.0,0.000163,2]
[351207150,1738426248033,-151.0,0.000163,2]
[351207151,1738426248042,-181.217168,0.000163,2]
[351207152,1738426248052,-151.0,0.000163,2]
[351207153,1738426248061,-181.217158,0.000163,2]
[351207154,1738426248072,-300.062766,0.000163,2]
[351207155,1738426248081,-151.0,0.000163,2]
[351207156,1738426248091,-151.0,0.000163,2]
[351207157,1738426248100,-151.0,0.000163,2]
[351207158,1738426248110,-151.0,0.000163,2]
[351207159,1738426248119,-151.0,0.000163,2]
[351207160,1738426248128,-151.0,0.000163,2]
[351207161,1738426248139,-151.0,0.000163,2]
[351207162,1738426248149,-151.0,0.000163,2]
[351207163,1738426248158,-346.10729,0.000163,2]
[351207164,1738426248167,-942.497478,0.000163,2]
[351207165,1738426248176,-346.10729,0.000163,2]
[351207166,1738426248186,-942.497478,0.000163,2]
[351207167,1738426248196,-942.497478,0.000163,2]
[351207168,1738426248207,-346.10729,0.000163,2]
[351207169,1738426248216,-942.497478,0.000163,2]
[351207170,1738426248226,-346.10729,0.000163,2]
[351207171,1738426248235,-942.497478,0.000163,2]
[351207172,1738426248246,-346.10729,0.000163,2]
[351207173,1738426248256,-942.497478,0.000163,2]
[351207174,1738426248266,-346.107281,0.000163,2]
[351207175,1738426248275,-942.497478,0.000163,2]
[351207176,1738426248285,-942.497485,0.000163,2]
[351207177,1738426248294,-361.387437,0.000163,2]
[351207178,1738426248303,-361.387437,0.000163,2]
[351207179,1738426248312,-361.387437,0.000163,2]
[351207180,1738426248322,-361.387437,0.000163,2]
[351207181,1738426248331,-361.387437,0.000163,2]
[351207182,1738426248340,-361.387437,0.000163,2]
[351207183,1738426248349,-361.387437,0.000163,2]
[351207184,1738426248359,-361.387433,0.000163,2]
[351207185,1738426248368,-545.563237,0.000163,2]
[351207186,1738426248377,-545.563237,0.000163,2]
[351207187,1738426248387,-545.563237,0.000163,2]
[351207188,1738426248396,-545.563237,0.000163,2]
[351207189,1738426248405,-545.563237,0.000163,2]
[351207190,1738426248415,-545.563237,0.000163,2]
[351207191,1738426248424,-545.563237,0.000163,2]
[351207192,1738426248434,-545.563234,0.000163,2]
[351207193,1738426248443,-376.204107,0.000163,2]
[351207194,1738426248453,-376.204107,0.000163,2]
[351207195,1738426248462,-376.204107,0.000163,2]
[351207196,1738426248472,-376.204107,0.000163,2]
[351207197,1738426248482,-376.204107,0.000163,2]
[351207198,1738426248491,-376.204114,0.000163,2]
[351207199,1738426248500,-337.58431472,0.000163,2]
[351207200,1738426248510,-17526.9660942,0.000163,2]
[351207201,1738426248519,-171.146205,0.000163,2]
[351207202,1738426248529,-171.146205,0.000163,2]
[351207203,1738426248538,-171.146205,0.000163,2]
[351207204,1738426248547,-171.146202,0.000163,2]
[351207205,1738426248557,-151.0,0.000163,2]
[351207206,1738426248567,-151.0,0.000163,2]
[351207207,1738426248577,-268.49148,0.000163,2]
[351207208,1738426248587,-268.49148,0.000163,2]
[351207209,1738426248596,-268.49148,0.000163,2]
[351207210,1738426248606,-151.0,0.000163,2]
[351207211,1738426248615,-151.0,0.000163,2]
[351207212,1738426248624,-268.49148,0.000163,2]
[351207213,1738426248634,-268.49148,0.000163,2]
[351207214,1738426248644,-268.491478,0.000163,2]
[351207215,1738426248654,-204.54767888,0.000163,2]
[351207216,1738426248666,-167.88372831,0.000163,2]
[351207217,1738426248675,-242.30388371,0.00016301,2]
[351207218,1738426248685,-151.0,0.00016302,2]
[351207219,1738426248694,-151.0,0.00016302,2]
[351207220,1738426248705,-151.0,0.00016302,2]
[351207221,1738426248714,-200.246182,0.00016302,2]
[351207222,1738426248723,-200.246182,0.00016302,2]
[351207223,1738426248732,-151.0,0.00016302,2]
[351207224,1738426248743,-421.83320111,0.00016329,2]
[351207225,1738426248753,-3379.62688152,0.00016333,2]
[351207226,1738426248762,-242.30388371,0.00016334,2]
[351207227,1738426248771,-204.54767886,0.00016347,2]
[351207228,1738426248780,-150.0,0.0001635,2]
[351207229,1738426248790,-642.69,0.0001635,2]
[351207230,1738426248799,-217.010726,0.00016351,2]
[351207231,1738426248808,-217.010726,0.00016351,2]
[351207232,1738426248817,-151.0,0.00016351,2]
[351207233,1738426248826,-228.008528,0.00016351,2]
[351207234,1738426248835,-1708.846066,0.00016351,2]
[351207235,1738426248845,-1708.846066,0.00016351,2]
[351207236,1738426248854,-151.0,0.00016351,2]
[351207237,1738426248863,-175.215476,0.00016351,2]
[351207238,1738426248873,-175.215476,0.00016351,2]
[351207239,1738426248882,-394.709078,0.00016351,2]
[351207240,1738426248892,-394.709078,0.00016351,2]
[351207241,1738426248902,-477.761517,0.00016351,2]
[351207242,1738426248911,-477.761517,0.00016351,2]
[351207243,1738426248921,-8778.618731,0.00016351,2]
[351207244,1738426248930,-8778.618731,0.00016351,2]
[351207245,1738426248939,-403.584928,0.00016351,2]
[351207246,1738426248948,-403.584928,0.00016351,2]
[351207247,1738426248957,-1504.182217,0.00016351,2]
[351207248,1738426248966,-1504.182217,0.00016351,2]
[351207249,1738426248976,-672.583795,0.00016351,2]
[351207250,1738426248986,-672.583795,0.00016351,2]
[351207251,1738426248996,-150.0,0.00016355,2]
[351207252,1738426249005,-421.83320111,0.00016364,2]
[351207253,1738426249015,-3379.62688152,0.00016367,2]
[351207254,1738426249024,-242.30388371,0.00016367,2]
[351207255,1738426249034,-164.84836624,0.00016373,2]
[351207256,1738426249043,-152.95750977,0.00016373,2]
[351207257,1738426249052,-500.0,0.00016373,2]
[351207258,1738426249061,-160.21791299,0.00016373,2]
[351207259,1738426249072,-161.32648426,0.00016373,2]
[351207260,1738426249081,-500.0,0.00016373,2]
[351207261,1738426249091,-24464.0,0.00016384,2]
[351207262,1738426249100,-33629.0,0.00016384,2]
[351207263,1738426249110,-151.0,0.00016384,2]
[351207264,1738426249119,-151.0,0.00016384,2]
[351207265,1738426249128,-197.797718,0.00016384,2]
[351207266,1738426249137,-151.0,0.00016384,2]
[351207267,1738426249147,-197.797718,0.00016384,2]
[351207268,1738426249156,-151.0,0.00016384,2]
[351207269,1738426249166,-151.0,0.00016384,2]
[351207270,1738426249175,-221.034484,0.00016384,2]
[351207271,1738426249186,-151.0,0.00016384,2]
[351207272,1738426249195,-151.0,0.00016384,2]
[351207273,1738426249205,-151.0,0.00016384,2]
[351207274,1738426249214,-151.0,0.00016384,2]
[351207275,1738426249224,-151.0,0.00016384,2]
[351207276,1738426249233,-151.0,0.00016384,2]
[351207277,1738426249243,-151.0,0.00016384,2]
[351207278,1738426249252,-151.0,0.00016384,2]
[351207279,1738426249262,-151.0,0.00016384,2]
[351207280,1738426249271,-151.0,0.00016384,2]
[351207281,1738426249281,-151.0,0.00016384,2]
[351207282,1738426249291,-151.0,0.00016384,2]
[351207283,1738426249300,-299.075,0.00016384,2]
[351207284,1738426249310,-299.075,0.00016384,2]
[351207285,1738426249320,-299.075,0.00016384,2]
[351207286,1738426249329,-299.075,0.00016384,2]
[351207287,1738426249339,-151.0,0.00016384,2]
[351207288,1738426249348,-151.0,0.00016384,2]
[351207289,1738426249357,-168.852199,0.00016384,2]
[351207290,1738426249366,-168.852199,0.00016384,2]
[351207291,1738426249376,-273.979344,0.00016384,2]
[351207292,1738426249385,-168.852199,0.00016384,2]
[351207293,1738426249394,-168.852199,0.00016384,2]
[351207294,1738426249403,-151.0,0.00016384,2]
[351207295,1738426249412,-151.0,0.00016384,2]
[351207296,1738426249422,-151.0,0.00016384,2]
[351207297,1738426249431,-151.0,0.00016384,2]
[351207298,1738426249440,-151.0,0.00016384,2]
[351207299,1738426249449,-151.0,0.00016384,2]
[351207300,1738426249458,-151.0,0.00016384,2]
[351207301,1738426249467,-151.0,0.00016384,2]
[351207302,1738426249476,-200.246182,0.00016384,2]
[351207303,1738426249485,-200.246182,0.00016384,2]
[351207304,1738426249494,-200.246182,0.00016384,2]
[351207305,1738426249503,-200.246182,0.00016384,2]
[351207306,1738426249512,-151.0,0.00016384,2]
[351207307,1738426249522,-151.0,0.00016384,2]
[351207308,1738426249531,-151.0,0.00016384,2]
[351207309,1738426249540,-151.0,0.00016384,2]
[351207310,1738426249550,-429.158042,0.00016384,2]
[351207311,1738426249560,-429.158042,0.00016384,2]
[351207312,1738426249570,-429.158042,0.00016384,2]
[351207313,1738426249580,-429.158042,0.00016384,2]
[351207314,1738426249589,-655.219287,0.00016384,2]
[351207315,1738426249599,-655.219287,0.00016384,2]
[351207316,1738426249613,-655.219287,0.00016384,2]
[351207317,1738426249622,-655.219287,0.00016384,2]
[351207318,1738426249632,-151.0,0.00016384,2]
[351207319,1738426249641,-241.076341,0.00016384,2]
[351207320,1738426249650,-151.0,0.00016384,2]
[351207321,1738426249662,-151.0,0.00016384,2]
[351207322,1738426249672,-151.0,0.00016384,2]
[351207323,1738426249681,-217.010726,0.00016384,2]
[351207324,1738426249691,-217.010726,0.00016384,2]
[351207325,1738426249702,-217.010726,0.00016384,2]
[351207326,1738426249711,-217.010726,0.00016384,2]
[351207327,1738426249720,-217.010726,0.00016384,2]
[351207328,1738426249730,-217.010719,0.00016384,2]
[351207329,1738426249740,-151.0,0.00016384,2]
[351207330,1738426249749,-151.0,0.00016384,2]
[351207331,1738426249759,-151.0,0.00016384,2]
[351207332,1738426249769,-228.008528,0.00016384,2]
[351207333,1738426249778,-228.008528,0.00016384,2]
[351207334,1738426249787,-228.008524,0.00016384,2]
[351207335,1738426249797,-1708.846066,0.00016384,2]
[351207336,1738426249806,-1708.846066,0.00016384,2]
[351207337,1738426249818,-1708.846066,0.00016384,2]
[351207338,1738426249827,-1708.846066,0.00016384,2]
[351207339,1738426249836,-1708.846066,0.00016384,2]
[351207340,1738426249845,-1708.846056,0.00016384,2]
[351207341,1738426249854,-159.022163,0.00016384,2]
[351207342,1738426249863,-159.022163,0.00016384,2]
[351207343,1738426249872,-159.022163,0.00016384,2]
[351207344,1738426249882,-159.022163,0.00016384,2]
[351207345,1738426249891,-159.022163,0.00016384,2]
[351207346,1738426249900,-159.022163,0.00016384,2]
[351207347,1738426249909,-157.035899,0.00016384,2]
[351207348,1738426249919,-157.035899,0.00016384,2]
[351207349,1738426249928,-157.035899,0.00016384,2]
[351207350,1738426249937,-157.035899,0.00016384,2]
[351207351,1738426249947,-157.035899,0.00016384,2]
[351207352,1738426249956,-157.035899,0.00016384,2]
[351207353,1738426249965,-151.0,0.00016384,2]
[351207354,1738426249975,-207.552161,0.00016384,2]
[351207355,1738426249983,-332.175108,0.00016384,2]
[351207356,1738426249992,-332.175108,0.00016384,2]
[351207357,1738426250001,-332.175108,0.00016384,2]
[351207358,1738426250010,-332.175108,0.00016384,2]
[351207359,1738426250019,-332.175108,0.00016384,2]
[351207360,1738426250028,-332.175108,0.00016384,2]
[351207361,1738426250037,-198.714051,0.00016384,2]
[351207362,1738426250047,-198.714051,0.00016384,2]
[351207363,1738426250056,-198.714051,0.00016384,2]
[351207364,1738426250066,-198.714051,0.00016384,2]
[351207365,1738426250075,-198.714051,0.00016384,2]
[351207366,1738426250085,-198.714051,0.00016384,2]
[351207367,1738426250094,-257.599741,0.00016384,2]
[351207368,1738426250103,-175.215476,0.00016384,2]
[351207369,1738426250113,-175.215472,0.00016384,2]
[351207370,1738426250123,-394.709078,0.00016384,2]
[351207371,1738426250133,-151.0,0.00016384,2]
[351207372,1738426250143,-151.0,0.00016384,2]
[351207373,1738426250153,-151.0,0.00016384,2]
[351207374,1738426250163,-394.709071,0.00016384,2]
[351207375,1738426250172,-226.810556,0.00016384,2]
[351207376,1738426250181,-477.761517,0.00016384,2]
[351207377,1738426250192,-477.761517,0.00016384,2]
[351207378,1738426250200,-8778.618731,0.00016384,2]
[351207379,1738426250210,-8778.618735,0.00016384,2]
[351207380,1738426250219,-403.584928,0.00016384,2]
[351207381,1738426250228,-403.584927,0.00016384,2]
[351207382,1738426250237,-151.0,0.00016384,2]
[351207383,1738426250247,-151.0,0.00016384,2]
[351207384,1738426250255,-151.0,0.00016384,2]
[351207385,1738426250269,-231.653368,0.00016384,2]
[351207386,1738426250278,-231.653368,0.00016384,2]
[351207387,1738426250287,-231.653368,0.00016384,2]
[351207388,1738426250296,-231.653368,0.00016384,2]
[351207389,1738426250305,-231.653368,0.00016384,2]
[351207390,1738426250485,-231.653378,0.00016384,2]
[351207391,1738426250496,-1504.182217,0.00016384,2]
[351207392,1738426250505,-1504.182221,0.00016384,2]
[351207393,1738426250515,-151.0,0.00016384,2]
[351207394,1738426250524,-151.0,0.00016384,2]
[351207395,1738426250534,-151.0,0.00016384,2]
[351207396,1738426250543,-225.279186,0.00016384,2]
[351207397,1738426250552,-151.0,0.00016384,2]
[351207398,1738426250562,-225.279186,0.00016384,2]
[351207399,1738426250572,-151.0,0.00016384,2]
[351207400,1738426250581,-225.279186,0.00016384,2]
[351207401,1738426250591,-151.0,0.00016384,2]
[351207402,1738426250601,-171.457189,0.00016384,2]
[351207403,1738426250611,-225.279186,0.00016384,2]
[351207404,1738426250621,-225.279186,0.00016384,2]
[351207405,1738426250631,-225.279191,0.00016384,2]
[351207406,1738426250642,-672.583795,0.00016384,2]
[351207407,1738426250651,-672.583796,0.00016384,2]
[351207408,1738426250664,-150.0,0.00016385,2]
[351207409,1738426250674,-500.0,0.00016388,2]
[351207410,1738426250683,-200.246182,0.00016389,2]
[351207411,1738426250692,-200.246182,0.00016389,2]
[351207412,1738426250703,-206.731074,0.00016389,2]
[351207413,1738426250712,-151.0,0.00016389,2]
[351207414,1738426250722,-429.158042,0.00016389,2]
[351207415,1738426250732,-429.158042,0.00016389,2]
[351207416,1738426250742,-655.219287,0.00016389,2]
[351207417,1738426250751,-655.219287,0.00016389,2]
[351207418,1738426250762,-205.18018388,0.0001639,2]
[351207419,1738426250771,-204.54767886,0.00016393,2]
[351207420,1738426250781,-1409054.08304454,0.000164,2]
[351207421,1738426250790,-4672.04581851,0.000164,2]
[351207422,1738426250800,-151.0,0.000164,2]
[351207423,1738426250809,-151.0,0.000164,2]
[351207424,1738426250820,-242.30388371,0.000164,2]
[351207425,1738426250830,-151.0,0.000164,2]
[351207426,1738426250840,-197.797718,0.000164,2]
[351207427,1738426250850,-151.0,0.000164,2]
[351207428,1738426250860,-197.797718,0.000164,2]
[351207429,1738426250870,-161.444791,0.000164,2]
[351207430,1738426250879,-151.0,0.000164,2]
[351207431,1738426250888,-151.0,0.000164,2]
[351207432,1738426250897,-151.0,0.000164,2]
[351207433,1738426250907,-151.0,0.000164,2]
[351207434,1738426250916,-151.0,0.000164,2]
[351207435,1738426250925,-151.0,0.000164,2]
[351207436,1738426250934,-151.0,0.000164,2]
[351207437,1738426250943,-151.0,0.000164,2]
[351207438,1738426250953,-151.0,0.000164,2]
[351207439,1738426250962,-151.0,0.000164,2]
[351207440,1738426250972,-151.0,0.000164,2]
[351207441,1738426250982,-151.0,0.000164,2]
[351207442,1738426250992,-274.882185,0.000164,2]
[351207443,1738426251001,-299.075,0.000164,2]
[351207444,1738426251010,-299.075,0.000164,2]
[351207445,1738426251019,-299.075,0.000164,2]
[351207446,1738426251028,-299.075,0.000164,2]
[351207447,1738426251037,-151.0,0.000164,2]
[351207448,1738426251046,-151.0,0.000164,2]
[351207449,1738426251055,-168.852199,0.000164,2]
[351207450,1738426251066,-168.852199,0.000164,2]
[351207451,1738426251076,-168.852199,0.000164,2]
[351207452,1738426251086,-168.852199,0.000164,2]
[351207453,1738426251095,-151.0,0.000164,2]
[351207454,1738426251104,-151.0,0.000164,2]
[351207455,1738426251113,-151.0,0.000164,2]
[351207456,1738426251123,-151.0,0.000164,2]
[351207457,1738426251132,-211.936471,0.000164,2]
[351207458,1738426251142,-200.246182,0.000164,2]
[351207459,1738426251151,-200.246182,0.000164,2]
[351207460,1738426251160,-200.246182,0.000164,2]
[351207461,1738426251170,-200.246179,0.000164,2]
[351207462,1738426251179,-151.0,0.000164,2]
[351207463,1738426251188,-429.158042,0.000164,2]
[351207464,1738426251197,-429.158043,0.000164,2]
[351207465,1738426251206,-655.219287,0.000164,2]
[351207466,1738426251215,-655.219285,0.000164,2]
[351207467,1738426251224,-223.442238,0.000164,2]
[351207468,1738426251234,-159.022163,0.000164,2]
[351207469,1738426251243,-159.022167,0.000164,2]
[351207470,1738426251253,-157.035899,0.000164,2]
[351207471,1738426251262,-157.035891,0.000164,2]
[351207472,1738426251272,-332.175108,0.000164,2]
[351207473,1738426251281,-332.175104,0.000164,2]
[351207474,1738426251291,-198.714051,0.000164,2]
[351207475,1738426251300,-198.714055,0.000164,2]
[351207476,1738426251309,-5800.0,0.000164,2]
[351207477,1738426251318,-3379.62688152,0.000164,2]
[351207478,1738426251327,-421.83320111,0.000164,2]
[351207479,1738426251337,-1051.62678038,0.000164,2]
[351207480,1738426251347,-1051.62678035,0.000164,2]
[351207481,1738426251356,-1051.62678035,0.000164,2]
[351207482,1738426251366,-1051.62678035,0.000164,2]
[351207483,1738426251376,-1051.62678035,0.000164,2]
[351207484,1738426251385,-1051.62678035,0.000164,2]
[351207485,1738426251394,-1051.62678035,0.000164,2]
[351207486,1738426251403,-1051.62678035,0.000164,2]
[351207487,1738426251413,-1051.62678035,0.000164,2]
[351207488,1738426251423,-1051.62678035,0.000164,2]
[351207489,1738426251433,-1051.62678035,0.000164,2]
[351207490,1738426251442,-1051.62678035,0.000164,2]
[351207491,1738426251451,-1051.62678035,0.000164,2]
[351207492,1738426251461,-1051.62678035,0.000164,2]
[351207493,1738426251470,-1051.62678035,0.000164,2]
[351207494,1738426251478,-1051.62678035,0.000164,2]
[351207495,1738426251487,-1051.62678035,0.000164,2]
[351207496,1738426251497,-1051.62678035,0.000164,2]
[351207497,1738426251506,-1051.62678035,0.000164,2]
[351207498,1738426251515,-1051.62678035,0.000164,2]
[351207499,1738426251524,-110235.22576548,0.000164,2]
[351207500,1738426251534,-150.0,0.00016421,2]
[351207501,1738426251543,-1000.0,0.00016421,2]
[351207502,1738426251553,-210.18787833,0.00016438,2]
[351207503,1738426251562,-150.0,0.00016438,2]
[351207504,1738426251572,-197.94672001,0.00016438,2]
[351207505,1738426251582,-151.0,0.00016438,2]
[351207506,1738426251591,-151.0,0.00016438,2]
[351207507,1738426251601,-506.10273422,0.00016438,2]
[351207508,1738426251610,-151.0,0.00016438,2]
[351207509,1738426251619,-151.0,0.00016438,2]
[351207510,1738426251628,-151.0,0.00016438,2]
[351207511,1738426251637,-151.0,0.00016438,2]
[351207512,1738426251647,-151.0,0.00016438,2]
[351207513,1738426251656,-151.0,0.00016438,2]
[351207514,1738426251669,-197.797718,0.00016438,2]
[351207515,1738426251678,-197.797718,0.00016438,2]
[351207516,1738426251687,-197.797718,0.00016438,2]
[351207517,1738426251696,-197.797718,0.00016438,2]
[351207518,1738426251707,-197.797718,0.00016438,2]
[351207519,1738426251716,-197.797718,0.00016438,2]
[351207520,1738426251726,-500.0,0.00016438,2]
[351207521,1738426251736,-197.797718,0.00016438,2]
[351207522,1738426251747,-197.797718,0.00016438,2]
[351207523,1738426251757,-197.797718,0.00016438,2]
[351207524,1738426251767,-197.797718,0.00016438,2]
[351207525,1738426251777,-197.797718,0.00016438,2]
[351207526,1738426251787,-197.797726,0.00016438,2]
[351207527,1738426251796,-151.0,0.00016438,2]
[351207528,1738426251806,-151.0,0.00016438,2]
[351207529,1738426251817,-151.0,0.00016438,2]
[351207530,1738426251826,-151.0,0.00016438,2]
[351207531,1738426251836,-151.0,0.00016438,2]
[351207532,1738426251847,-151.0,0.00016438,2]
[351207533,1738426251856,-159.41056,0.00016438,2]
[351207534,1738426251865,-500.0,0.00016438,2]
[351207535,1738426251874,-151.0,0.00016438,2]
[351207536,1738426251884,-500.0,0.00016438,2]
[351207537,1738426251893,-514.88211352,0.00016438,2]
[351207538,1738426251902,-500.0,0.00016438,2]
[351207539,1738426251911,-502.92203135,0.00016438,2]